[Event "Titled Tuesday Blitz December 20 Early 2022"]
[White "Giorno, Sven"]
[Black "The_filthy"]
[WhiteFideId "20645082"]
[WhiteElo "2517"]
[BlackElo "2377"]
[Result "1/2-1/2"]
[Round "06"]
[TimeControl "180+2"]
[Date "2022.12.20"]
[WhiteClock "0:00:16"]
[BlackClock "0:00:10"]

1. Nf3 {[%clk 0:03:00]}  d5 {[%clk 0:02:58]} 2. e3 {[%clk 0:02:59]}  Nf6 {[%clk 0:02:55]} 3. c4 {[%clk 0:02:59]}  e6 {[%clk 0:02:55]} 4. b3 {[%clk 0:02:57]}  Be7 {[%clk 0:02:55]} 5. Bb2 {[%clk 0:02:57]}  O-O {[%clk 0:02:55]} 6. Qc2 {[%clk 0:02:57]}  a6 {[%clk 0:02:56]} 7. g4 {[%clk 0:02:53]}  b6 {[%clk 0:02:52]} 8. g5 {[%clk 0:02:52]}  Ne4 {[%clk 0:02:49]} 9. h4 {[%clk 0:02:50]}  Bb7 {[%clk 0:02:39]} 10. Bg2 {[%clk 0:02:38]}  Nd7 {[%clk 0:02:23]} 11. Nc3 {[%clk 0:02:32]}  Nxc3 {[%clk 0:02:15]} 12. Qxc3 {[%clk 0:02:31]}  f6 {[%clk 0:02:16]} 13. Qc2 {[%clk 0:02:24]}  Nc5 {[%clk 0:02:03]} 14. b4 {[%clk 0:02:08]}  Ne4 {[%clk 0:02:01]} 15. a3 {[%clk 0:01:56]}  a5 {[%clk 0:01:57]} 16. d3 {[%clk 0:01:52]}  Nd6 {[%clk 0:01:54]} 17. c5 {[%clk 0:01:47]}  Nc8 {[%clk 0:01:39]} 18. c6 {[%clk 0:01:43]}  Ba6 {[%clk 0:01:38]} 19. Nd4 {[%clk 0:01:43]}  axb4 {[%clk 0:01:25]} 20. Nxe6 {[%clk 0:01:41]}  Qd6 {[%clk 0:01:21]} 21. Nxf8 {[%clk 0:01:39]}  Bxf8 {[%clk 0:01:22]} 22. axb4 {[%clk 0:01:33]}  Qxb4+ {[%clk 0:01:22]} 23. Bc3 {[%clk 0:01:33]}  Qb5 {[%clk 0:01:22]} 24. O-O {[%clk 0:01:13]}  fxg5 {[%clk 0:01:20]} 25. hxg5 {[%clk 0:01:12]}  Qxc6 {[%clk 0:01:10]} 26. Rfc1 {[%clk 0:01:11]}  Qe6 {[%clk 0:01:00]} 27. Qb3 {[%clk 0:01:06]}  Bb7 {[%clk 0:01:01]} 28. Rxa8 {[%clk 0:01:05]}  Bxa8 {[%clk 0:01:02]} 29. e4 {[%clk 0:00:59]}  Qg6 {[%clk 0:00:51]} 30. exd5 {[%clk 0:00:54]}  Qxg5 {[%clk 0:00:51]} 31. Re1 {[%clk 0:00:41]}  Nd6 {[%clk 0:00:49]} 32. Be5 {[%clk 0:00:37]}  Bb7 {[%clk 0:00:34]} 33. Qc3 {[%clk 0:00:30]}  Qd8 {[%clk 0:00:27]} 34. Bg3 {[%clk 0:00:27]}  Nf5 {[%clk 0:00:21]} 35. Qxc7 {[%clk 0:00:26]}  Qg5 {[%clk 0:00:16]} 36. Qxb7 {[%clk 0:00:21]}  Nxg3 {[%clk 0:00:17]} 37. fxg3 {[%clk 0:00:20]}  Bc5+ {[%clk 0:00:16]} 38. Kh2 {[%clk 0:00:19]}  Qh6+ {[%clk 0:00:11]} 39. Bh3 {[%clk 0:00:16]}  Qd2+ {[%clk 0:00:11]} 40. Bg2 {[%clk 0:00:16]}  Qh6+ {[%clk 0:00:10]} 41. Bh3 {[%clk 0:00:16]}  Qd2+ {[%clk 0:00:10]} 42. Bg2 {[%clk 0:00:16]}  Qh6+ {[%clk 0:00:10]} 1/2-1/2


[Site "https://www.chess.com"]

[Event "Titled Tuesday Blitz December 20 Early 2022"]
[White "GregLeBarbare"]
[Black "santosalberto1987"]
[WhiteElo "2242"]
[BlackElo "2495"]
[Result "0-1"]
[Round "06"]
[TimeControl "180+2"]
[Date "2022.12.20"]
[WhiteClock "0:00:55"]
[BlackClock "0:01:31"]

1. d4 {[%clk 0:02:56]}  d5 {[%clk 0:02:59]} 2. Nf3 {[%clk 0:02:55]}  Nf6 {[%clk 0:02:59]} 3. Bf4 {[%clk 0:02:55]}  c5 {[%clk 0:02:59]} 4. e3 {[%clk 0:02:56]}  Nc6 {[%clk 0:02:58]} 5. Nbd2 {[%clk 0:02:56]}  Qb6 {[%clk 0:02:57]} 6. dxc5 {[%clk 0:02:56]}  Qxc5 {[%clk 0:02:58]} 7. a3 {[%clk 0:02:56]}  Qb6 {[%clk 0:02:56]} 8. b4 {[%clk 0:02:35]}  Bf5 {[%clk 0:02:55]} 9. c4 {[%clk 0:02:35]}  e6 {[%clk 0:02:55]} 10. Be2 {[%clk 0:02:15]}  Be7 {[%clk 0:02:53]} 11. O-O {[%clk 0:02:15]}  O-O {[%clk 0:02:53]} 12. Nh4 {[%clk 0:02:10]}  Bg6 {[%clk 0:02:52]} 13. Nxg6 {[%clk 0:02:10]}  hxg6 {[%clk 0:02:53]} 14. Nf3 {[%clk 0:01:57]}  Qd8 {[%clk 0:02:42]} 15. Qb3 {[%clk 0:01:49]}  Bd6 {[%clk 0:02:38]} 16. Bxd6 {[%clk 0:01:46]}  Qxd6 {[%clk 0:02:39]} 17. cxd5 {[%clk 0:01:46]}  Qxd5 {[%clk 0:02:38]} 18. Qxd5 {[%clk 0:01:46]}  Nxd5 {[%clk 0:02:38]} 19. Rac1 {[%clk 0:01:47]}  Rac8 {[%clk 0:02:26]} 20. Rfd1 {[%clk 0:01:46]}  Rfd8 {[%clk 0:02:23]} 21. g3 {[%clk 0:01:41]}  Nce7 {[%clk 0:02:16]} 22. Kg2 {[%clk 0:01:28]}  Rxc1 {[%clk 0:02:12]} 23. Rxc1 {[%clk 0:01:28]}  Rc8 {[%clk 0:02:12]} 24. Rxc8+ {[%clk 0:01:27]}  Nxc8 {[%clk 0:02:13]} 25. Nd4 {[%clk 0:01:21]}  Ncb6 {[%clk 0:02:08]} 26. Nc2 {[%clk 0:01:17]}  Kf8 {[%clk 0:02:01]} 27. Bf3 {[%clk 0:01:14]}  Ke7 {[%clk 0:01:59]} 28. e4 {[%clk 0:01:14]}  Nc3 {[%clk 0:01:57]} 29. Kf1 {[%clk 0:01:15]}  e5 {[%clk 0:01:52]} 30. Ke1 {[%clk 0:01:15]}  Nb5 {[%clk 0:01:47]} 31. Be2 {[%clk 0:01:11]}  Nc7 {[%clk 0:01:39]} 32. Kd2 {[%clk 0:01:06]}  Ne6 {[%clk 0:01:39]} 33. Kc3 {[%clk 0:01:06]}  Kd6 {[%clk 0:01:39]} 34. Kb3 {[%clk 0:01:03]}  Nd7 {[%clk 0:01:32]} 35. a4 {[%clk 0:00:59]}  Nb8 {[%clk 0:01:31]} 36. Ne3 {[%clk 0:00:55]}  Nd4+ {[%clk 0:01:31]} 0-1


[Site "https://www.chess.com"]

[Event "Titled Tuesday Blitz December 20 Early 2022"]
[White "Groz, Jacky"]
[Black "Salles, Louis"]
[WhiteFideId "626643"]
[BlackFideId "20641826"]
[WhiteElo "2052"]
[BlackElo "2287"]
[Result "1-0"]
[Round "06"]
[TimeControl "180+2"]
[Date "2022.12.20"]
[WhiteClock "0:00:47"]
[BlackClock "0:00:19"]

1. Nf3 {[%clk 0:03:00]}  e6 {[%clk 0:02:59]} 2. g3 {[%clk 0:03:01]}  d5 {[%clk 0:03:00]} 3. Bg2 {[%clk 0:03:01]}  g6 {[%clk 0:03:00]} 4. O-O {[%clk 0:03:02]}  Bg7 {[%clk 0:03:00]} 5. d3 {[%clk 0:03:03]}  Ne7 {[%clk 0:03:01]} 6. e4 {[%clk 0:02:58]}  O-O {[%clk 0:03:02]} 7. Qe2 {[%clk 0:02:56]}  Nbc6 {[%clk 0:03:02]} 8. e5 {[%clk 0:02:55]}  a5 {[%clk 0:03:01]} 9. d4 {[%clk 0:02:54]}  b6 {[%clk 0:03:00]} 10. Re1 {[%clk 0:02:53]}  Ba6 {[%clk 0:03:00]} 11. Qd1 {[%clk 0:02:51]}  Nb8 {[%clk 0:03:00]} 12. Bg5 {[%clk 0:02:49]}  h6 {[%clk 0:03:00]} 13. Bf4 {[%clk 0:02:45]}  c5 {[%clk 0:02:59]} 14. Qd2 {[%clk 0:02:43]}  Kh7 {[%clk 0:02:59]} 15. c3 {[%clk 0:02:42]}  Nbc6 {[%clk 0:02:55]} 16. h4 {[%clk 0:02:41]}  a4 {[%clk 0:02:54]} 17. Na3 {[%clk 0:02:38]}  Na5 {[%clk 0:02:53]} 18. g4 {[%clk 0:02:32]}  Nec6 {[%clk 0:02:39]} 19. Bf1 {[%clk 0:02:28]}  Bxf1 {[%clk 0:02:38]} 20. Rxf1 {[%clk 0:02:29]}  f5 {[%clk 0:02:32]} 21. g5 {[%clk 0:02:21]}  h5 {[%clk 0:02:31]} 22. Qe2 {[%clk 0:02:18]}  Rf7 {[%clk 0:02:26]} 23. Qb5 {[%clk 0:02:17]}  Qc8 {[%clk 0:01:55]} 24. dxc5 {[%clk 0:02:12]}  bxc5 {[%clk 0:01:51]} 25. Qxc5 {[%clk 0:02:13]}  Bf8 {[%clk 0:01:51]} 26. Qe3 {[%clk 0:02:03]}  Bxa3 {[%clk 0:01:51]} 27. bxa3 {[%clk 0:02:04]}  Nc4 {[%clk 0:01:50]} 28. Qd3 {[%clk 0:02:00]}  Rb7 {[%clk 0:01:44]} 29. Nd2 {[%clk 0:01:54]}  Nxd2 {[%clk 0:01:41]} 30. Qxd2 {[%clk 0:01:51]}  Na5 {[%clk 0:01:41]} 31. Rab1 {[%clk 0:01:47]}  Rab8 {[%clk 0:01:41]} 32. Rb4 {[%clk 0:01:46]}  Nc4 {[%clk 0:01:35]} 33. Qd3 {[%clk 0:01:46]}  Nxa3 {[%clk 0:01:22]} 34. Rxa4 {[%clk 0:01:42]}  Nc4 {[%clk 0:01:22]} 35. Ra6 {[%clk 0:01:17]}  Rc7 {[%clk 0:01:17]} 36. Rd6 {[%clk 0:01:13]}  Nxd6 {[%clk 0:01:05]} 37. exd6 {[%clk 0:01:13]}  Rd7 {[%clk 0:01:05]} 38. Re1 {[%clk 0:01:09]}  Rb6 {[%clk 0:00:33]} 39. Rxe6 {[%clk 0:01:06]}  Qc4 {[%clk 0:00:33]} 40. Qe3 {[%clk 0:00:45]}  Rb1+ {[%clk 0:00:32]} 41. Kh2 {[%clk 0:00:46]}  Qf1 {[%clk 0:00:18]} 42. Re7+ {[%clk 0:00:46]}  Rxe7 {[%clk 0:00:18]} 43. Qxe7+ {[%clk 0:00:47]}  Kg8 {[%clk 0:00:19]} 44. Qe8+ {[%clk 0:00:47]}  Kh7 {[%clk 0:00:19]} 45. Qf7+ {[%clk 0:00:47]} 1-0


[Site "https://www.chess.com"]

[Event "Titled Tuesday Blitz December 20 Early 2022"]
[White "Hanfin, Zahra Chumaira Amelia"]
[Black "Ezat, Mohamed"]
[WhiteFideId "7111983"]
[BlackFideId "10600906"]
[WhiteElo "2062"]
[BlackElo "2402"]
[Result "0-1"]
[Round "06"]
[TimeControl "180+2"]
[Date "2022.12.20"]
[WhiteClock "0:00:07"]
[BlackClock "0:01:35"]

1. d4 {[%clk 0:03:00]}  Nf6 {[%clk 0:02:58]} 2. Bf4 {[%clk 0:03:00]}  d5 {[%clk 0:02:55]} 3. e3 {[%clk 0:03:00]}  c5 {[%clk 0:02:54]} 4. Nf3 {[%clk 0:02:58]}  Nc6 {[%clk 0:02:54]} 5. Nbd2 {[%clk 0:02:58]}  Bg4 {[%clk 0:02:51]} 6. dxc5 {[%clk 0:02:55]}  e5 {[%clk 0:02:49]} 7. Bg5 {[%clk 0:02:45]}  Bxc5 {[%clk 0:02:46]} 8. h3 {[%clk 0:02:39]}  Bh5 {[%clk 0:02:43]} 9. c4 {[%clk 0:02:25]}  d4 {[%clk 0:02:39]} 10. e4 {[%clk 0:02:17]}  O-O {[%clk 0:02:31]} 11. Bd3 {[%clk 0:02:14]}  Be7 {[%clk 0:02:20]} 12. a3 {[%clk 0:02:11]}  Nd7 {[%clk 0:02:17]} 13. Bxe7 {[%clk 0:02:09]}  Qxe7 {[%clk 0:02:15]} 14. O-O {[%clk 0:02:04]}  Nc5 {[%clk 0:02:14]} 15. Qc2 {[%clk 0:02:00]}  Ne6 {[%clk 0:02:12]} 16. b4 {[%clk 0:01:50]}  Nf4 {[%clk 0:02:11]} 17. Nh2 {[%clk 0:01:24]}  a5 {[%clk 0:02:08]} 18. b5 {[%clk 0:01:23]}  Nd8 {[%clk 0:02:07]} 19. Rfe1 {[%clk 0:01:17]}  Nde6 {[%clk 0:02:07]} 20. Ndf1 {[%clk 0:01:07]}  Nc5 {[%clk 0:02:05]} 21. Ng3 {[%clk 0:00:59]}  Ncxd3 {[%clk 0:02:02]} 22. Nxh5 {[%clk 0:00:19]}  Nxe1 {[%clk 0:01:36]} 23. Rxe1 {[%clk 0:00:07]}  Nxh5 {[%clk 0:01:35]} 0-1


[Site "https://www.chess.com"]

[Event "Titled Tuesday Blitz December 20 Early 2022"]
[White "Hansch, Karsten"]
[Black "Crone, Stephan"]
[WhiteFideId "24692239"]
[BlackFideId "4670175"]
[WhiteElo "2248"]
[BlackElo "1860"]
[Result "0-1"]
[Round "06"]
[TimeControl "180+2"]
[Date "2022.12.20"]
[WhiteClock "0:00:07"]
[BlackClock "0:00:22"]

1. e4 {[%clk 0:03:00]}  g6 {[%clk 0:02:59]} 2. d4 {[%clk 0:03:00]}  d6 {[%clk 0:02:58]} 3. Nc3 {[%clk 0:02:59]}  Nf6 {[%clk 0:02:58]} 4. f4 {[%clk 0:02:59]}  Bg7 {[%clk 0:02:58]} 5. Nf3 {[%clk 0:03:00]}  O-O {[%clk 0:02:58]} 6. Bd3 {[%clk 0:03:00]}  Na6 {[%clk 0:02:59]} 7. a3 {[%clk 0:02:53]}  c5 {[%clk 0:02:58]} 8. e5 {[%clk 0:02:49]}  Nh5 {[%clk 0:02:43]} 9. exd6 {[%clk 0:02:37]}  exd6 {[%clk 0:02:18]} 10. Bxa6 {[%clk 0:02:32]}  bxa6 {[%clk 0:02:12]} 11. dxc5 {[%clk 0:02:28]}  Re8+ {[%clk 0:02:05]} 12. Ne2 {[%clk 0:02:21]}  Qa5+ {[%clk 0:01:32]} 13. c3 {[%clk 0:01:29]}  Qxc5 {[%clk 0:01:31]} 14. Kf1 {[%clk 0:00:35]}  a5 {[%clk 0:01:18]} 15. Ned4 {[%clk 0:00:28]}  Ba6+ {[%clk 0:01:13]} 16. Kf2 {[%clk 0:00:28]}  Nf6 {[%clk 0:00:58]} 17. Re1 {[%clk 0:00:16]}  Rxe1 {[%clk 0:00:47]} 18. Qxe1 {[%clk 0:00:16]}  Re8 {[%clk 0:00:48]} 19. Qd1 {[%clk 0:00:15]}  Ng4+ {[%clk 0:00:42]} 20. Kg1 {[%clk 0:00:16]}  Ne3 {[%clk 0:00:41]} 21. Qb3 {[%clk 0:00:13]}  Bc4 {[%clk 0:00:36]} 22. Qa4 {[%clk 0:00:11]}  Nf5 {[%clk 0:00:33]} 23. Qxe8+ {[%clk 0:00:10]}  Bf8 {[%clk 0:00:33]} 24. Ng5 {[%clk 0:00:09]}  Nxd4 {[%clk 0:00:28]} 25. Be3 {[%clk 0:00:08]}  Ne2+ {[%clk 0:00:24]} 26. Kf2 {[%clk 0:00:08]}  Qb5 {[%clk 0:00:22]} 27. b4 {[%clk 0:00:07]}  Qxe8 {[%clk 0:00:22]} 0-1


[Site "https://www.chess.com"]

[Event "Titled Tuesday Blitz December 20 Early 2022"]
[White "Harkness, Bryan"]
[Black "milovichalex"]
[WhiteFideId "444227"]
[WhiteElo "1935"]
[BlackElo "2303"]
[Result "1-0"]
[Round "06"]
[TimeControl "180+2"]
[Date "2022.12.20"]
[WhiteClock "0:00:03"]
[BlackClock "0:00:22"]

1. d4 {[%clk 0:03:00]}  Nf6 {[%clk 0:02:59]} 2. Nf3 {[%clk 0:03:00]}  d5 {[%clk 0:02:59]} 3. c4 {[%clk 0:02:59]}  e6 {[%clk 0:02:59]} 4. Nc3 {[%clk 0:02:59]}  Bb4 {[%clk 0:02:59]} 5. Qc2 {[%clk 0:02:54]}  Nc6 {[%clk 0:02:58]} 6. a3 {[%clk 0:02:48]}  Bxc3+ {[%clk 0:02:54]} 7. Qxc3 {[%clk 0:02:44]}  Ne4 {[%clk 0:02:53]} 8. Qc2 {[%clk 0:02:42]}  O-O {[%clk 0:02:51]} 9. e3 {[%clk 0:02:34]}  Ng5 {[%clk 0:02:40]} 10. Be2 {[%clk 0:02:29]}  Nxf3+ {[%clk 0:02:36]} 11. Bxf3 {[%clk 0:02:29]}  dxc4 {[%clk 0:02:29]} 12. Qxc4 {[%clk 0:02:27]}  e5 {[%clk 0:02:29]} 13. d5 {[%clk 0:02:23]}  Na5 {[%clk 0:02:25]} 14. Qc3 {[%clk 0:02:22]}  c6 {[%clk 0:02:20]} 15. Bd2 {[%clk 0:02:14]}  b6 {[%clk 0:02:19]} 16. dxc6 {[%clk 0:02:13]}  Ba6 {[%clk 0:01:56]} 17. b4 {[%clk 0:01:22]}  Nc4 {[%clk 0:01:52]} 18. Rd1 {[%clk 0:01:19]}  Nxd2 {[%clk 0:01:47]} 19. Rxd2 {[%clk 0:01:17]}  Qc7 {[%clk 0:01:48]} 20. Be2 {[%clk 0:01:14]}  Bxe2 {[%clk 0:01:31]} 21. Rxe2 {[%clk 0:01:13]}  b5 {[%clk 0:01:31]} 22. O-O {[%clk 0:01:12]}  a5 {[%clk 0:01:30]} 23. Rd2 {[%clk 0:00:58]}  Ra6 {[%clk 0:01:28]} 24. Rc1 {[%clk 0:00:52]}  h6 {[%clk 0:01:27]} 25. h3 {[%clk 0:00:46]}  Rc8 {[%clk 0:01:26]} 26. Rdc2 {[%clk 0:00:17]}  axb4 {[%clk 0:01:19]} 27. axb4 {[%clk 0:00:17]}  e4 {[%clk 0:00:41]} 28. Qc5 {[%clk 0:00:16]}  Rb6 {[%clk 0:00:34]} 29. Qd5 {[%clk 0:00:14]}  Re8 {[%clk 0:00:30]} 30. Rc5 {[%clk 0:00:13]}  Re6 {[%clk 0:00:27]} 31. Rxb5 {[%clk 0:00:06]}  Rbxc6 {[%clk 0:00:26]} 32. Rxc6 {[%clk 0:00:04]}  Rxc6 {[%clk 0:00:26]} 33. Rc5 {[%clk 0:00:04]}  Rxc5 {[%clk 0:00:25]} 34. bxc5 {[%clk 0:00:04]}  g6 {[%clk 0:00:21]} 35. c6 {[%clk 0:00:04]}  Kg7 {[%clk 0:00:20]} 36. Qxe4 {[%clk 0:00:04]}  Qd6 {[%clk 0:00:21]} 37. Qd4+ {[%clk 0:00:03]}  Qxd4 {[%clk 0:00:21]} 38. exd4 {[%clk 0:00:03]}  Kf6 {[%clk 0:00:21]} 39. d5 {[%clk 0:00:03]}  Ke7 {[%clk 0:00:21]} 40. f3 {[%clk 0:00:03]}  Kd6 {[%clk 0:00:22]} 41. Kf2 {[%clk 0:00:03]}  f5 {[%clk 0:00:22]} 42. Ke3 {[%clk 0:00:04]}  Kxd5 {[%clk 0:00:23]} 43. c7 {[%clk 0:00:03]}  f4+ {[%clk 0:00:22]} 44. Kd3 {[%clk 0:00:03]} 1-0


[Site "https://www.chess.com"]

[Event "Titled Tuesday Blitz December 20 Early 2022"]
[White "Huda, Maryana"]
[Black "queen_iryna"]
[WhiteFideId "14116553"]
[WhiteElo "2160"]
[BlackElo "2354"]
[Result "0-1"]
[Round "06"]
[TimeControl "180+2"]
[Date "2022.12.20"]
[WhiteClock "0:00:09"]
[BlackClock "0:00:10"]

1. d4 {[%clk 0:03:00]}  d6 {[%clk 0:03:00]} 2. Nf3 {[%clk 0:02:59]}  g6 {[%clk 0:03:00]} 3. g3 {[%clk 0:02:54]}  Bg7 {[%clk 0:03:01]} 4. Bg2 {[%clk 0:02:55]}  Nf6 {[%clk 0:03:01]} 5. O-O {[%clk 0:02:55]}  O-O {[%clk 0:03:02]} 6. c4 {[%clk 0:02:56]}  Nc6 {[%clk 0:03:02]} 7. Nc3 {[%clk 0:02:56]}  Bf5 {[%clk 0:03:02]} 8. Re1 {[%clk 0:02:55]}  Ne4 {[%clk 0:03:02]} 9. Nxe4 {[%clk 0:02:51]}  Bxe4 {[%clk 0:03:03]} 10. d5 {[%clk 0:02:47]}  Bxf3 {[%clk 0:02:47]} 11. Bxf3 {[%clk 0:02:46]}  Nd4 {[%clk 0:02:34]} 12. Bg2 {[%clk 0:02:43]}  e5 {[%clk 0:02:34]} 13. dxe6 {[%clk 0:02:42]}  fxe6 {[%clk 0:02:30]} 14. Bxb7 {[%clk 0:02:33]}  Rb8 {[%clk 0:02:31]} 15. Bg2 {[%clk 0:02:32]}  Qf6 {[%clk 0:02:20]} 16. Rf1 {[%clk 0:02:26]}  Kh8 {[%clk 0:02:10]} 17. Rb1 {[%clk 0:02:19]}  Qf5 {[%clk 0:02:00]} 18. Be3 {[%clk 0:02:15]}  c5 {[%clk 0:02:00]} 19. b3 {[%clk 0:01:59]}  a5 {[%clk 0:01:49]} 20. Bxd4 {[%clk 0:01:50]}  cxd4 {[%clk 0:01:40]} 21. Qd3 {[%clk 0:01:44]}  Qc5 {[%clk 0:01:26]} 22. Qe4 {[%clk 0:01:37]}  e5 {[%clk 0:01:18]} 23. Qd5 {[%clk 0:01:32]}  Qa3 {[%clk 0:01:13]} 24. h4 {[%clk 0:00:38]}  Qxa2 {[%clk 0:01:06]} 25. Qxd6 {[%clk 0:00:35]}  Rxb3 {[%clk 0:01:04]} 26. Ra1 {[%clk 0:00:25]}  Qxe2 {[%clk 0:01:03]} 27. Rxa5 {[%clk 0:00:24]}  e4 {[%clk 0:00:44]} 28. Ra7 {[%clk 0:00:11]}  e3 {[%clk 0:00:41]} 29. Qe7 {[%clk 0:00:09]}  exf2+ {[%clk 0:00:27]} 30. Kh2 {[%clk 0:00:08]}  Qxe7 {[%clk 0:00:24]} 31. Rxe7 {[%clk 0:00:07]}  Re3 {[%clk 0:00:20]} 32. Rd7 {[%clk 0:00:03]}  Be5 {[%clk 0:00:19]} 33. c5 {[%clk 0:00:02]}  Bxg3+ {[%clk 0:00:19]} 34. Kh1 {[%clk 0:00:03]}  Re1 {[%clk 0:00:14]} 35. c6 {[%clk 0:00:03]}  Kg8 {[%clk 0:00:04]} 36. c7 {[%clk 0:00:03]}  Ree8 {[%clk 0:00:03]} 37. Rxd4 {[%clk 0:00:01]}  Bxc7 {[%clk 0:00:01]} 38. Bd5+ {[%clk 0:00:01]}  Kh8 {[%clk 0:00:01]} 39. Kg2 {[%clk 0:00:02]}  Bb6 {[%clk 0:00:01]} 40. Rd2 {[%clk 0:00:02]}  Bc5 {[%clk 0:00:01]} 41. Re2 {[%clk 0:00:02]}  Rd8 {[%clk 0:00:02]} 42. Rexf2 {[%clk 0:00:03]}  Rxf2+ {[%clk 0:00:01]} 43. Rxf2 {[%clk 0:00:03]}  Bxf2 {[%clk 0:00:02]} 44. Kxf2 {[%clk 0:00:02]}  Rxd5 {[%clk 0:00:03]} 45. Kg3 {[%clk 0:00:03]}  Rd4 {[%clk 0:00:03]} 46. Kh3 {[%clk 0:00:03]}  h5 {[%clk 0:00:04]} 47. Kg3 {[%clk 0:00:04]}  Rg4+ {[%clk 0:00:05]} 48. Kh3 {[%clk 0:00:05]}  g5 {[%clk 0:00:06]} 49. hxg5 {[%clk 0:00:05]}  Rxg5 {[%clk 0:00:06]} 50. Kh4 {[%clk 0:00:05]}  Ra5 {[%clk 0:00:07]} 51. Kh3 {[%clk 0:00:06]}  Kg7 {[%clk 0:00:08]} 52. Kh4 {[%clk 0:00:06]}  Kg6 {[%clk 0:00:09]} 53. Kh3 {[%clk 0:00:07]}  Kg5 {[%clk 0:00:09]} 54. Kg3 {[%clk 0:00:07]}  h4+ {[%clk 0:00:10]} 55. Kh2 {[%clk 0:00:08]}  Kg4 {[%clk 0:00:10]} 56. Kg2 {[%clk 0:00:09]} 0-1


[Site "https://www.chess.com"]

[Event "Titled Tuesday Blitz December 20 Early 2022"]
[White "InitiatingASC"]
[Black "sergeikim"]
[WhiteElo "2412"]
[BlackElo "2606"]
[Result "0-1"]
[Round "06"]
[TimeControl "180+2"]
[Date "2022.12.20"]
[WhiteClock "0:00:03"]
[BlackClock "0:00:21"]

1. Nf3 {[%clk 0:03:00]}  Nf6 {[%clk 0:02:59]} 2. g3 {[%clk 0:02:59]}  g6 {[%clk 0:02:59]} 3. Bg2 {[%clk 0:02:59]}  Bg7 {[%clk 0:02:59]} 4. O-O {[%clk 0:02:59]}  d6 {[%clk 0:03:00]} 5. c4 {[%clk 0:02:58]}  O-O {[%clk 0:03:00]} 6. Nc3 {[%clk 0:02:56]}  e5 {[%clk 0:02:59]} 7. d3 {[%clk 0:02:52]}  Re8 {[%clk 0:02:59]} 8. e4 {[%clk 0:02:52]}  c6 {[%clk 0:02:58]} 9. Bg5 {[%clk 0:02:52]}  h6 {[%clk 0:02:57]} 10. Be3 {[%clk 0:02:50]}  Ng4 {[%clk 0:02:55]} 11. Bd2 {[%clk 0:02:49]}  f5 {[%clk 0:02:55]} 12. Qc1 {[%clk 0:02:43]}  Kh7 {[%clk 0:02:50]} 13. b4 {[%clk 0:02:34]}  Rf8 {[%clk 0:02:37]} 14. b5 {[%clk 0:02:32]}  f4 {[%clk 0:02:20]} 15. Rb1 {[%clk 0:02:25]}  Nd7 {[%clk 0:02:06]} 16. bxc6 {[%clk 0:01:51]}  bxc6 {[%clk 0:02:06]} 17. Qa3 {[%clk 0:01:51]}  Nc5 {[%clk 0:01:55]} 18. Na4 {[%clk 0:01:51]}  Ne6 {[%clk 0:01:38]} 19. c5 {[%clk 0:01:50]}  d5 {[%clk 0:01:29]} 20. exd5 {[%clk 0:01:48]}  cxd5 {[%clk 0:01:29]} 21. c6 {[%clk 0:01:34]}  e4 {[%clk 0:01:15]} 22. Ne1 {[%clk 0:01:21]}  f3 {[%clk 0:01:04]} 23. Bh3 {[%clk 0:01:16]}  Nd4 {[%clk 0:01:04]} 24. Qc5 {[%clk 0:00:53]}  Ne2+ {[%clk 0:00:59]} 25. Kh1 {[%clk 0:00:53]}  Nxf2+ {[%clk 0:00:55]} 26. Rxf2 {[%clk 0:00:52]}  Bxh3 {[%clk 0:00:54]} 27. c7 {[%clk 0:00:47]}  Qd7 {[%clk 0:00:49]} 28. Qb4 {[%clk 0:00:11]}  Qxc7 {[%clk 0:00:36]} 29. dxe4 {[%clk 0:00:09]}  Rab8 {[%clk 0:00:32]} 30. Qxb8 {[%clk 0:00:01]}  Rxb8 {[%clk 0:00:31]} 31. Rxb8 {[%clk 0:00:02]}  Qxb8 {[%clk 0:00:31]} 32. exd5 {[%clk 0:00:03]}  Qb1 {[%clk 0:00:21]} 0-1


[Site "https://www.chess.com"]

[Event "Titled Tuesday Blitz December 20 Early 2022"]
[White "Jasko, Pavel"]
[Black "Iskusnyh, Sergei"]
[WhiteFideId "980463"]
[BlackFideId "4120027"]
[WhiteElo "1693"]
[BlackElo "2440"]
[Result "1-0"]
[Round "06"]
[TimeControl "180+2"]
[Date "2022.12.20"]
[WhiteClock "0:00:24"]
[BlackClock "0:00:11"]

1. d4 {[%clk 0:03:00]}  d5 {[%clk 0:02:59]} 2. Bf4 {[%clk 0:03:00]}  Nf6 {[%clk 0:02:56]} 3. e3 {[%clk 0:03:00]}  c5 {[%clk 0:02:57]} 4. c3 {[%clk 0:03:00]}  Nc6 {[%clk 0:02:56]} 5. Nd2 {[%clk 0:03:01]}  cxd4 {[%clk 0:02:56]} 6. exd4 {[%clk 0:03:01]}  Bf5 {[%clk 0:02:54]} 7. Ngf3 {[%clk 0:02:58]}  e6 {[%clk 0:02:53]} 8. Bb5 {[%clk 0:02:57]}  Nd7 {[%clk 0:02:27]} 9. O-O {[%clk 0:02:55]}  Be7 {[%clk 0:02:27]} 10. Re1 {[%clk 0:02:48]}  O-O {[%clk 0:02:26]} 11. c4 {[%clk 0:02:35]}  dxc4 {[%clk 0:02:21]} 12. Bxc6 {[%clk 0:02:35]}  bxc6 {[%clk 0:02:19]} 13. Nxc4 {[%clk 0:02:36]}  Bg4 {[%clk 0:02:10]} 14. Rc1 {[%clk 0:02:31]}  Rc8 {[%clk 0:02:02]} 15. Nd6 {[%clk 0:02:12]}  Bxd6 {[%clk 0:01:45]} 16. Bxd6 {[%clk 0:02:12]}  Re8 {[%clk 0:01:45]} 17. Qd3 {[%clk 0:02:11]}  Bxf3 {[%clk 0:01:42]} 18. Qxf3 {[%clk 0:02:11]}  Qa5 {[%clk 0:01:38]} 19. a3 {[%clk 0:01:44]}  Qd5 {[%clk 0:01:27]} 20. Qxd5 {[%clk 0:01:38]}  cxd5 {[%clk 0:01:26]} 21. Kf1 {[%clk 0:01:34]}  Nb6 {[%clk 0:01:07]} 22. b3 {[%clk 0:01:34]}  Rxc1 {[%clk 0:01:01]} 23. Rxc1 {[%clk 0:01:33]}  Rc8 {[%clk 0:01:00]} 24. Rxc8+ {[%clk 0:01:23]}  Nxc8 {[%clk 0:01:00]} 25. Bc5 {[%clk 0:01:24]}  f6 {[%clk 0:01:00]} 26. Ke2 {[%clk 0:01:24]}  Kf7 {[%clk 0:01:01]} 27. Kd3 {[%clk 0:01:24]}  Ke8 {[%clk 0:01:02]} 28. f4 {[%clk 0:01:22]}  Kd7 {[%clk 0:01:01]} 29. g4 {[%clk 0:01:21]}  Kc6 {[%clk 0:00:58]} 30. Kc3 {[%clk 0:01:09]}  a6 {[%clk 0:00:51]} 31. b4 {[%clk 0:01:06]}  Kc7 {[%clk 0:00:29]} 32. Kb3 {[%clk 0:01:06]}  Kc6 {[%clk 0:00:28]} 33. Ka4 {[%clk 0:01:05]}  Nb6+ {[%clk 0:00:17]} 34. Bxb6 {[%clk 0:00:55]}  Kxb6 {[%clk 0:00:18]} 35. Kb3 {[%clk 0:00:56]}  Kc6 {[%clk 0:00:18]} 36. Kc3 {[%clk 0:00:54]}  Kb5 {[%clk 0:00:17]} 37. Kb3 {[%clk 0:00:54]}  Kc6 {[%clk 0:00:17]} 38. a4 {[%clk 0:00:55]}  Kb6 {[%clk 0:00:18]} 39. Kc3 {[%clk 0:00:55]}  Kc6 {[%clk 0:00:18]} 40. Kd3 {[%clk 0:00:55]}  Kd6 {[%clk 0:00:18]} 41. Ke3 {[%clk 0:00:55]}  Kc6 {[%clk 0:00:18]} 42. h4 {[%clk 0:00:55]}  Kd6 {[%clk 0:00:17]} 43. h5 {[%clk 0:00:37]}  Kc6 {[%clk 0:00:17]} 44. g5 {[%clk 0:00:22]}  h6 {[%clk 0:00:17]} 45. gxf6 {[%clk 0:00:19]}  gxf6 {[%clk 0:00:17]} 46. f5 {[%clk 0:00:18]}  Kd6 {[%clk 0:00:12]} 47. fxe6 {[%clk 0:00:17]}  Kxe6 {[%clk 0:00:12]} 48. Kf4 {[%clk 0:00:18]}  f5 {[%clk 0:00:05]} 49. b5 {[%clk 0:00:18]}  axb5 {[%clk 0:00:05]} 50. axb5 {[%clk 0:00:19]}  Kd6 {[%clk 0:00:06]} 51. Kxf5 {[%clk 0:00:19]}  Kc7 {[%clk 0:00:07]} 52. Ke6 {[%clk 0:00:19]}  Kb6 {[%clk 0:00:07]} 53. Kxd5 {[%clk 0:00:20]}  Kxb5 {[%clk 0:00:08]} 54. Ke6 {[%clk 0:00:21]}  Kb6 {[%clk 0:00:09]} 55. d5 {[%clk 0:00:21]}  Kc7 {[%clk 0:00:10]} 56. Ke7 {[%clk 0:00:22]}  Kb6 {[%clk 0:00:10]} 57. d6 {[%clk 0:00:23]}  Kc5 {[%clk 0:00:11]} 58. d7 {[%clk 0:00:24]} 1-0


[Site "https://www.chess.com"]